bitfinex/quotes_BTCUSD_20240718
["timestamp","ask_amount","ask_price","bid_price","bid_amount"]
[1721326826187,0.00833,63629.0,63625.0,0.15717]
[1721326826427,0.002794,63628.0,63625.0,0.314339]
[1721326826657,0.157157,63631.0,63626.0,0.002794]
[1721326826887,0.157161,63629.0,63627.0,0.02926448]
[1721326827120,0.157156,63631.0,63628.0,0.002794]
[1721326827344,0.157154,63632.0,63629.0,0.02072765]
[1721326827566,0.062957,63651.0,63629.0,0.02072765]
[1721326827567,0.0633,63646.0,63631.0,0.314311]
[1721326827786,0.157129,63642.0,63637.0,0.157141]
[1721326828003,0.314245,63645.0,63637.0,0.157141]
[1721326828004,0.157132,63641.0,63637.0,0.157141]
[1721326828250,0.0633,63646.0,63636.0,0.157143]
[1721326828251,0.314259,63642.0,63636.0,0.157143]
[1721326828476,0.0633,63646.0,63632.0,0.49795122]
[1721326828477,0.314248,63644.0,63638.0,0.157138]
[1721326828684,0.157129,63642.0,63638.0,0.18823046]
[1721326828919,0.157129,63642.0,63639.0,0.02926448]
[1721326829134,0.322566,63647.0,63640.0,0.157133]
[1721326829351,0.157126,63643.0,63639.0,0.18639948]
[1721326829585,0.157129,63642.0,63640.0,0.02072765]
[1721326829811,0.157126,63643.0,63640.0,0.02072765]
[1721326830250,0.157126,63643.0,63640.0,0.02272765]
[1721326830473,0.157131,63641.0,63640.0,0.02272765]
[1721326830694,0.00833,63647.0,63639.0,0.008]
[1721326830941,0.314244,63645.0,63640.0,0.008]
[1721326831160,0.157125,63644.0,63640.0,0.165133]
[1721326831373,0.157125,63644.0,63639.0,0.008]
[1721326831587,0.314244,63645.0,63639.0,0.008]
[1721326831797,0.15713,63642.0,63639.0,0.008]
[1721326832053,0.157125,63644.0,63639.0,0.008]
[1721326832275,0.157125,63644.0,63640.0,0.157133]
[1721326832485,0.314244,63645.0,63639.0,0.157136]
[1721326832486,0.157127,63643.0,63639.0,0.157136]
[1721326832697,0.157127,63643.0,63640.0,0.009]
[1721326833137,0.157127,63643.0,63640.0,0.008]
[1721326833396,0.157128,63642.0,63639.0,0.163136]
[1721326833618,0.157128,63642.0,63639.0,0.006]
[1721326833843,0.314239,63646.0,63640.0,0.008]
[1721326833844,0.471393,63641.0,63640.0,0.008]
[1721326834056,0.14882401,63641.0,63640.0,0.016]
[1721326834277,0.46308601,63641.0,63640.0,0.008]
[1721326834493,0.14882401,63641.0,63640.0,0.008]
[1721326834721,0.314251,63644.0,63640.0,0.008]
[1721326834949,0.157129,63642.0,63641.0,0.002794]
[1721326835177,0.157126,63643.0,63641.0,0.02329675]
[1721326835388,0.314238,63646.0,63641.0,0.02050275]
[1721326835389,0.314242,63646.0,63641.0,0.02050275]
[1721326835603,0.314245,63645.0,63641.0,0.02050275]
[1721326835838,0.314242,63646.0,63641.0,0.02050275]
[1721326835839,0.157127,63643.0,63641.0,0.02050275]
[1721326836075,0.315078,63644.0,63642.0,0.02317332]
[1721326836076,0.157954,63644.0,63642.0,0.02317332]
[1721326836521,0.157126,63643.0,63642.0,0.02317332]
[1721326837846,0.157128,63642.0,63641.0,0.008]
[1721326838067,0.471385,63642.0,63641.0,0.008]
[1721326838255,0.157128,63642.0,63641.0,0.008]
[1721326838497,0.157126,63643.0,63641.0,0.008]
[1721326838935,0.157126,63643.0,63642.0,0.008]
[1721326839158,0.157126,63643.0,63639.0,0.002794]
[1721326839604,0.157128,63642.0,63641.0,0.009]
[1721326839850,0.157956,63644.0,63641.0,0.009]
[1721326840066,0.157956,63644.0,63641.0,0.017]
[1721326840289,0.00083,63644.0,63642.0,0.02394474]
[1721326840511,0.00083,63644.0,63643.0,0.78563]
[1721326840946,0.00833,63647.0,63645.0,0.15712]
[1721326841175,0.00833,63647.0,63645.0,0.18821246]
[1721326841388,0.00833,63647.0,63646.0,0.02918988]
[1721326841822,0.165446,63647.0,63645.0,0.03109246]
[1721326842039,0.157119,63646.0,63645.0,0.03109246]
[1721326842250,0.157119,63646.0,63645.0,0.04009246]
[1721326842251,1.099833,63646.0,63645.0,0.04009246]
[1721326843106,1.241133,63646.0,63645.0,0.04009246]
[1721326843318,0.926895,63646.0,63645.0,0.04009246]
[1721326843525,0.926895,63646.0,63645.0,0.03609246]
[1721326843747,0.926895,63646.0,63645.0,0.04209246]
[1721326844383,0.926895,63646.0,63645.0,0.03109246]
[1721326845487,0.926895,63646.0,63645.0,0.03209246]
[1721326845709,1.241133,63646.0,63645.0,0.03209246]
[1721326846414,0.926895,63646.0,63645.0,0.03209246]
[1721326846636,0.612657,63646.0,63645.0,0.03209246]
[1721326847295,0.157119,63646.0,63645.0,0.01892255]
[1721326847509,0.00833,63647.0,63645.0,0.157119]
[1721326847728,0.00833,63647.0,63646.0,0.157119]
[1721326848157,0.00833,63647.0,63646.0,0.471357]
[1721326848386,0.396493,63656.0,63646.0,0.471357]
[1721326848387,0.07283,63668.0,63657.0,1.09964]
[1721326848611,0.00833,63668.0,63657.0,0.97044399]
[1721326848837,0.00833,63668.0,63664.0,0.314148]
[1721326849050,1e-08,63670.0,63666.0,0.157068]
[1721326849280,0.04904272,63670.0,63669.0,0.157062]
[1721326849497,0.0645,63680.0,63669.0,0.002794]
[1721326849498,0.31408,63678.0,63669.0,0.002794]
[1721326849735,0.157047,63675.0,63670.0,0.157059]
[1721326850689,0.157059,63670.0,63669.0,0.002794]
[1721326850917,0.157069,63666.0,63665.0,0.002794]
[1721326851157,0.157072,63665.0,63664.0,0.03060525]
[1721326851397,0.157072,63665.0,63664.0,0.05067417]
[1721326851643,0.84836,63665.0,63664.0,0.03060525]
[1721326851863,1.162504,63665.0,63664.0,0.03060525]
[1721326852764,0.391324,63670.0,63664.0,0.03060525]
[1721326852993,0.471216,63665.0,63664.0,0.03060525]
[1721326853210,0.609478,63670.0,63669.0,0.011]
[1721326853423,0.157067,63668.0,63664.0,0.03060525]
[1721326853692,0.157063,63669.0,63665.0,0.002794]
[1721326853910,0.157069,63666.0,63665.0,0.002794]
[1721326854134,0.1383,63670.0,63664.0,0.03060525]
[1721326854135,0.157072,63665.0,63664.0,0.03060525]
[1721326854363,0.157072,63665.0,63664.0,0.05537417]
[1721326854577,0.157065,63668.0,63664.0,0.04937417]
[1721326854827,0.157068,63667.0,63665.0,0.002794]
[1721326855031,0.157068,63667.0,63665.0,0.005794]
[1721326855260,0.157056,63672.0,63667.0,0.157066]
[1721326855462,0.157055,63672.0,63668.0,0.002794]
[1721326855916,0.314108,63673.0,63668.0,0.002794]
[1721326856150,0.0657,63675.0,63668.0,0.002794]
[1721326856151,0.1,63672.0,63668.0,0.01876892]
[1721326856382,0.0657,63675.0,63667.0,0.002794]
[1721326856383,0.157057,63671.0,63669.0,0.002794]
[1721326856619,0.157057,63671.0,63666.0,0.159863]
[1721326856833,0.157054,63673.0,63668.0,0.157064]
[1721326857056,0.314065,63681.0,63669.0,0.002794]
[1721326857057,0.0499415,63679.0,63669.0,0.002794]
[1721326857278,0.0499415,63679.0,63678.0,0.15704]
[1721326857524,0.0499415,63679.0,63678.0,0.18764525]
[1721326857736,0.157026,63684.0,63678.0,0.18764525]
[1721326858174,0.06993,63688.0,63678.0,0.03060525]
[1721326858396,0.157021,63686.0,63680.0,0.157033]
[1721326858616,0.157021,63686.0,63679.0,0.314074]
[1721326858617,0.157023,63685.0,63679.0,0.157036]
[1721326858877,0.157029,63683.0,63678.0,0.19164425]
[1721326859090,0.157037,63679.0,63678.0,0.03460525]
[1721326859325,0.157037,63679.0,63678.0,0.03060525]
[1721326859547,0.785187,63679.0,63678.0,0.03860525]
[1721326859759,1.176362,63679.0,63678.0,0.03060525]
[1721326860191,1.176362,63679.0,63678.0,0.03660525]
[1721326860401,1.237562,63679.0,63678.0,0.03060525]
[1721326860839,1.70601874,63679.0,63678.0,0.03260525]
[1721326861066,0.946387,63679.0,63678.0,0.03260525]
[1721326861318,0.632312,63679.0,63678.0,0.03260525]
[1721326861525,0.632312,63679.0,63678.0,0.04360525]
[1721326861746,0.946387,63679.0,63678.0,0.04360525]
[1721326861960,0.946387,63679.0,63678.0,0.03260525]
[1721326862417,0.946387,63679.0,63678.0,0.03760525]
[1721326862685,0.632312,63679.0,63678.0,0.03760525]
[1721326862906,0.1,63679.0,63678.0,0.03460525]
[1721326863119,0.257037,63679.0,63678.0,0.05677018]
[1721326863331,0.885187,63679.0,63678.0,0.03760525]
[1721326863759,0.885187,63679.0,63678.0,0.03360525]
[1721326864045,0.885187,63679.0,63678.0,0.04260525]
[1721326864270,0.885187,63679.0,63678.0,0.03360525]
[1721326864488,0.885187,63679.0,63678.0,0.003]
[1721326864715,0.571112,63679.0,63678.0,0.003]
[1721326864938,0.87379374,63679.0,63678.0,0.003]
[1721326865152,1.50194374,63679.0,63678.0,0.003]
[1721326865371,0.157074,63664.0,63663.0,0.002794]
[1721326865598,0.471223,63664.0,63663.0,0.03339925]
[1721326865812,0.314112,63672.0,63663.0,0.03060525]
[1721326865813,0.157073,63665.0,63663.0,0.03060525]
[1721326866026,0.471223,63664.0,63663.0,0.03060525]
[1721326866701,0.785372,63664.0,63663.0,0.03060525]
[1721326866936,0.471223,63664.0,63663.0,0.03060525]
[1721326867195,0.471223,63664.0,63663.0,0.04260525]
[1721326867425,0.785372,63664.0,63663.0,0.04260525]
[1721326867642,0.865872,63664.0,63663.0,0.04260525]
[1721326867891,0.865872,63664.0,63663.0,0.05560525]
[1721326868104,0.20407671,63676.0,63663.0,0.05560525]
[1721326868105,0.157068,63667.0,63663.0,0.05560525]
[1721326868312,0.1448,63675.0,63663.0,0.05560525]
[1721326868313,0.157074,63664.0,63663.0,0.05560525]
[1721326869186,0.157074,63664.0,63663.0,0.03151825]
[1721326869398,0.471223,63664.0,63663.0,0.03251825]
[1721326869610,0.471223,63664.0,63663.0,0.04051825]
[1721326869797,0.15707,63666.0,63663.0,0.04051825]
[1721326869949,0.15707,63666.0,63663.0,0.04751825]
[1721326870160,0.157072,63665.0,63664.0,0.002794]
[1721326870367,0.314132,63668.0,63664.0,0.002794]
[1721326870623,0.15707,63666.0,63664.0,0.002794]
[1721326870934,0.157067,63667.0,63664.0,0.002794]
[1721326871388,0.15707,63666.0,63664.0,0.002794]
[1721326871519,0.471208,63666.0,63665.0,0.02043933]
[1721326871730,0.471223,63664.0,63663.0,0.04451825]
[1721326871951,1.39370274,63664.0,63663.0,0.04451825]
[1721326872161,0.471274,63657.0,63656.0,0.03060525]
[1721326872391,0.785532,63651.0,63650.0,0.03060525]
[1721326872808,1.25412674,63651.0,63650.0,0.03060525]
[1721326873014,1.09978,63649.0,63646.0,0.07024471]
[1721326873237,0.785557,63649.0,63646.0,0.07024471]
[1721326874056,0.471334,63649.0,63646.0,0.07024471]
[1721326874316,0.157109,63650.0,63646.0,0.07024471]
[1721326874519,0.471334,63649.0,63648.0,0.01476798]
[1721326874721,0.157111,63649.0,63648.0,0.01476798]
[1721326874940,0.157121,63645.0,63644.0,0.002794]
[1721326875352,0.471364,63645.0,63644.0,0.002794]
[1721326875616,0.157124,63644.0,63643.0,0.03060525]
[1721326875811,0.471372,63644.0,63643.0,0.03060525]
[1721326876009,0.78562,63644.0,63643.0,0.03060525]
[1721326876423,1.099868,63644.0,63643.0,0.03060525]
[1721326877306,1.099868,63644.0,63643.0,0.03460525]
[1721326877934,1.100868,63644.0,63643.0,0.04060525]
[1721326878981,1.515116,63644.0,63643.0,0.01]
[1721326879612,1.66949774,63644.0,63643.0,0.01]
[1721326880018,1.66949774,63644.0,63643.0,0.006]
[1721326880220,1.175222,63635.0,63634.0,0.03060525]
[1721326880359,1.80429574,63635.0,63634.0,0.03060525]
[1721326881608,0.471549,63620.0,63619.0,0.002794]
[1721326881812,0.785915,63620.0,63619.0,0.03060525]
[1721326882710,0.471549,63620.0,63619.0,0.03060525]
[1721326883391,0.471549,63620.0,63619.0,0.03460525]
[1721326883785,1.164981,63620.0,63619.0,0.03460525]
[1721326883993,1.31936274,63620.0,63619.0,0.03460525]
[1721326885291,1.31936274,63620.0,63619.0,0.03060525]
[1721326885498,1.31936274,63620.0,63619.0,0.03353174]
[1721326885729,1.31936274,63620.0,63619.0,0.03853174]
[1721326886781,1.31936274,63620.0,63619.0,0.008]
[1721326887223,0.471549,63620.0,63619.0,0.003]
[1721326887422,0.785915,63620.0,63619.0,0.007]
[1721326888527,0.471549,63620.0,63619.0,0.007]
[1721326888934,0.157181,63621.0,63619.0,0.007]
[1721326889139,0.157177,63623.0,63619.0,0.05395094]
[1721326889355,0.314206,63653.0,63623.0,0.157174]
[1721326889356,0.314322,63629.0,63623.0,0.157174]
[1721326889869,0.0612,63646.0,63631.0,0.547168]
[1721326890087,0.314252,63644.0,63631.0,1.11179348]
[1721326890526,0.157131,63641.0,63637.0,0.157141]
[1721326890764,0.314252,63644.0,63642.0,0.157127]
[1721326890765,0.04965699,63644.0,63642.0,0.157127]
[1721326890959,0.20678199,63644.0,63642.0,0.03053174]
[1721326891191,0.157126,63643.0,63642.0,0.03053174]
[1721326892121,0.78563,63643.0,63642.0,0.03753174]
[1721326892362,0.78563,63643.0,63642.0,0.04553174]
[1721326892828,1.099882,63643.0,63642.0,0.04553174]
[1721326893048,1.81281574,63643.0,63642.0,0.04553174]
[1721326893286,1.81281574,63643.0,63642.0,0.03853174]
[1721326893490,1.81281574,63643.0,63642.0,0.04653174]
[1721326894215,1.81281574,63643.0,63642.0,0.03853174]
[1721326894441,1.96916531,63643.0,63642.0,0.03153174]
[1721326894710,1.81481574,63643.0,63642.0,0.03253174]
[1721326894936,1.81481574,63643.0,63642.0,0.03153174]
[1721326894937,1.81281574,63643.0,63642.0,0.03153174]
[1721326895443,1.49856374,63643.0,63642.0,0.03253174]
[1721326895688,0.95053,63643.0,63642.0,0.03153174]
[1721326895951,0.95153,63643.0,63642.0,0.03353174]
[1721326896196,0.95153,63643.0,63642.0,0.03253174]
[1721326896437,0.88663,63643.0,63642.0,0.03253174]
[1721326896665,0.88663,63643.0,63642.0,0.002]
[1721326897378,0.001,63643.0,63642.0,0.002]
[1721326897605,0.001,63643.0,63642.0,0.003]
[1721326897831,0.158126,63643.0,63642.0,0.003]
[1721326898050,0.157126,63643.0,63642.0,0.002]
[1721326898496,0.157126,63643.0,63638.0,0.002794]
[1721326898497,0.002,63643.0,63638.0,0.002794]
[1721326898735,0.157134,63640.0,63638.0,0.03053174]
[1721326898963,0.157134,63640.0,63639.0,0.002794]
[1721326899415,0.157135,63640.0,63638.0,0.03053174]
[1721326899885,0.471408,63639.0,63638.0,0.03053174]
[1721326900331,0.157136,63639.0,63638.0,0.03053174]
[1721326900580,0.471408,63639.0,63638.0,0.03053174]
[1721326901078,0.471408,63639.0,63638.0,0.03653174]
[1721326901306,0.157136,63639.0,63638.0,0.03053174]
[1721326901514,0.157136,63639.0,63638.0,0.03753174]
[1721326901515,0.78568,63639.0,63638.0,0.03753174]
[1721326901732,1.32532,63639.0,63638.0,0.03753174]
[1721326901973,1.89397374,63639.0,63638.0,0.007]
[1721326902246,1.89397374,63639.0,63638.0,0.016]
[1721326902247,1.89480374,63639.0,63638.0,0.016]
[1721326902666,1.89480374,63639.0,63638.0,0.011]
[1721326902867,1.89680374,63639.0,63638.0,0.011]
[1721326903071,1.89680374,63639.0,63630.0,0.03053174]
[1721326903072,0.78578,63631.0,63630.0,0.03053174]
[1721326905246,0.157156,63631.0,63630.0,0.03053174]
[1721326905500,0.314288,63636.0,63630.0,0.03753174]
[1721326905716,0.15715,63634.0,63631.0,0.084494]
[1721326905937,0.314286,63637.0,63632.0,0.0646]
[1721326906151,0.157144,63636.0,63633.0,0.002794]
[1721326906371,0.10083,63639.0,63633.0,0.002794]
[1721326906372,0.415104,63639.0,63633.0,0.002794]
[1721326906598,0.157142,63637.0,63633.0,0.002794]
[1721326907475,0.315104,63639.0,63633.0,0.002794]
[1721326907476,0.157147,63635.0,63633.0,0.002794]
[1721326907718,0.157139,63638.0,63633.0,0.002794]
[1721326907930,0.157139,63638.0,63633.0,0.159943]
[1721326908150,0.157141,63637.0,63633.0,0.159943]
[1721326908804,0.157141,63637.0,63633.0,0.165943]
[1721326909035,0.00083,63639.0,63637.0,0.157139]
[1721326909245,0.00083,63639.0,63638.0,0.474209]
[1721326909454,0.00083,63639.0,63638.0,0.471415]
[1721326911678,0.00083,63639.0,63638.0,0.476415]
[1721326912109,0.00083,63639.0,63638.0,0.471415]
[1721326912338,0.00083,63639.0,63638.0,0.491415]
[1721326915225,0.00083,63639.0,63638.0,0.79409674]
[1721326915438,0.00083,63639.0,63638.0,1.10837374]
[1721326915641,0.00083,63639.0,63638.0,1.42265074]
[1721326915856,0.00083,63639.0,63638.0,1.10837374]
[1721326917321,0.00083,63639.0,63638.0,0.953992]
[1721326917536,0.00083,63639.0,63638.0,0.639715]
[1721326917751,0.00083,63639.0,63638.0,0.02]
[1721326918637,0.157966,63639.0,63638.0,0.02]
[1721326919703,0.78651,63639.0,63638.0,0.02]
[1721326920593,0.00083,63639.0,63638.0,0.02]
[1721326921514,0.00083,63639.0,63638.0,0.491415]
[1721326921790,0.00083,63639.0,63638.0,0.805692]
[1721326922013,0.00083,63639.0,63638.0,1.10737374]
[1721326923207,0.00083,63639.0,63638.0,0.258038]
[1721326923663,0.00083,63639.0,63638.0,0.177138]
[1721326924384,0.00083,63639.0,63638.0,0.02]
[1721326924874,0.472238,63639.0,63638.0,0.02]
[1721326925141,0.78651,63639.0,63638.0,0.02]
[1721326925433,1.100782,63639.0,63638.0,0.02]
[1721326925681,1.30482313,63639.0,63638.0,0.02]
[1721326925911,1.32941602,63639.0,63638.0,0.02]
[1721326926149,1.42968588,63639.0,63638.0,0.02]
[1721326926633,1.56163627,63639.0,63638.0,0.01]
[1721326926877,1.62323627,63639.0,63638.0,0.01]
[1721326927128,1.612262,63639.0,63638.0,0.01]
[1721326927357,1.57330702,63639.0,63638.0,0.01]
[1721326927830,0.15717,63626.0,63624.0,0.002794]
[1721326928123,0.15717,63626.0,63624.0,0.03332574]
[1721326928357,0.15717,63626.0,63624.0,0.03053174]
[1721326928812,0.157168,63626.0,63624.0,0.03053174]
[1721326929042,0.157168,63626.0,63624.0,0.04353174]
[1721326929550,0.158168,63626.0,63624.0,0.05653174]
[1721326929777,0.15717,63625.0,63624.0,0.05653174]
[1721326930476,0.158168,63626.0,63624.0,0.05653174]
[1721326930701,0.157168,63626.0,63624.0,0.04353174]
[1721326931149,0.15817,63625.0,63624.0,0.05753174]
[1721326931617,0.15717,63625.0,63624.0,0.04353174]
[1721326931857,0.15717,63625.0,63624.0,0.03053174]
[1721326932107,0.15717,63625.0,63624.0,0.05753174]
[1721326932586,0.15717,63625.0,63624.0,0.04453174]
[1721326932826,0.15817,63625.0,63624.0,0.05853174]
[1721326933531,0.472511,63625.0,63624.0,0.05853174]
[1721326933764,1.101193,63625.0,63624.0,0.05853174]
[1721326934506,1.100193,63625.0,63624.0,0.04453174]
[1721326934771,0.785852,63625.0,63624.0,0.03053174]
[1721326935016,0.474511,63625.0,63624.0,0.03053174]
[1721326935228,0.471511,63625.0,63624.0,0.03053174]
[1721326935724,0.006,63625.0,63624.0,0.18770474]
[1721326935963,0.006,63625.0,63624.0,0.05630291]
[1721326936181,0.006,63625.0,63624.0,0.21347591]
[1721326936394,0.006,63625.0,63624.0,0.49829017]
[1721326936824,0.471511,63625.0,63624.0,0.001]
[1721326937279,0.785852,63625.0,63624.0,0.001]
[1721326937492,1.240593,63625.0,63624.0,0.001]
[1721326938125,0.785915,63620.0,63619.0,0.000913]
[1721326938339,0.785915,63620.0,63619.0,0.03144474]
[1721326938570,0.06994193,63633.0,63619.0,0.03144474]
[1721326938571,0.1404,63632.0,63619.0,0.03144474]
[1721326938790,0.157182,63621.0,63619.0,0.03144474]
[1721326939007,0.157183,63620.0,63619.0,0.03144474]
[1721326939920,0.157177,63623.0,63619.0,0.18962974]
[1721326940138,0.157175,63624.0,63620.0,0.002794]
[1721326940352,0.157176,63623.0,63620.0,0.002794]
[1721326940561,0.157178,63622.0,63620.0,0.002794]
[1721326940823,0.314339,63626.0,63620.0,0.002794]
[1721326941037,0.157174,63624.0,63620.0,0.002794]
[1721326941281,0.157178,63622.0,63620.0,0.002794]
[1721326942651,0.157176,63623.0,63620.0,0.002794]
[1721326942907,0.157176,63623.0,63620.0,0.012794]
[1721326943441,0.314294,63635.0,63621.0,0.15752522]
[1721326943662,0.10083,63639.0,63626.0,0.157167]
[1721326943663,0.314309,63632.0,63626.0,0.157167]
[1721326943894,0.314309,63632.0,63626.0,0.18769874]
[1721326943895,0.157159,63630.0,63626.0,0.18769874]
[1721326944109,0.314298,63634.0,63626.0,0.03053174]
[1721326944317,0.157165,63627.0,63626.0,0.03053174]
[1721326944769,0.314326,63629.0,63626.0,0.03053174]
[1721326944981,0.157165,63627.0,63626.0,0.03053174]
[1721326945405,0.157165,63628.0,63626.0,0.03153174]
[1721326945618,0.157159,63630.0,63626.0,0.03153174]
[1721326945838,0.0662,63638.0,63627.0,0.002794]
[1721326946061,0.0662,63638.0,63627.0,0.159959]
[1721326946062,0.14993305,63637.0,63627.0,0.159959]
[1721326946322,0.157154,63632.0,63627.0,0.159959]
[1721326946551,0.14993305,63637.0,63627.0,0.159959]
[1721326946552,0.157152,63633.0,63627.0,0.317124]
[1721326946775,0.157152,63633.0,63628.0,0.157162]
[1721326946993,0.157152,63633.0,63627.0,0.317124]
[1721326946994,0.157152,63633.0,63629.0,0.159955]
[1721326947909,0.04993305,63637.0,63635.0,0.157144]
[1721326948122,0.04993305,63637.0,63635.0,0.18767574]
[1721326948340,0.157968,63639.0,63636.0,0.002794]
[1721326948341,0.157138,63638.0,63636.0,0.002794]
[1721326948565,0.157138,63638.0,63635.0,0.03053174]
[1721326948790,0.157966,63639.0,63635.0,0.18767674]
[1721326949008,0.157966,63639.0,63636.0,0.002794]
[1721326949679,0.157138,63638.0,63636.0,0.007794]
[1721326949966,0.00083,63639.0,63638.0,0.471415]
[1721326950400,0.00083,63639.0,63638.0,0.785692]
[1721326951025,0.00083,63639.0,63638.0,0.471415]
[1721326951900,0.00083,63639.0,63638.0,0.785692]
[1721326952550,0.00083,63639.0,63638.0,0.789692]
[1721326953250,0.00083,63639.0,63638.0,0.794692]
[1721326953488,0.00083,63639.0,63638.0,0.480415]
[1721326954175,0.00083,63639.0,63638.0,0.794692]
[1721326954395,0.00083,63639.0,63638.0,0.938592]
[1721326954841,0.00083,63639.0,63638.0,1.09297374]
[1721326955263,0.00083,63639.0,63638.0,1.45725074]
[1721326955478,0.00083,63639.0,63638.0,1.40725074]
[1721326955701,0.00083,63639.0,63638.0,1.40325074]
[1721326955920,0.00083,63639.0,63638.0,1.79052774]
[1721326956133,0.00083,63639.0,63638.0,1.48525074]
[1721326956364,0.00083,63639.0,63638.0,1.49925074]
[1721326957453,0.00083,63639.0,63638.0,1.81352774]
[1721326959498,0.00083,63639.0,63638.0,2.07557269]
[1721326959733,0.04983416,63658.0,63657.0,1.23874]
[1721326959989,0.46304871,63669.0,63668.0,0.157064]
[1721326960248,0.157045,63676.0,63671.0,0.157056]
[1721326960512,0.157047,63675.0,63671.0,0.157056]
[1721326960723,0.380583,63678.0,63668.0,0.34466074]
[1721326960724,0.0665,63678.0,63668.0,0.03053174]
[1721326960978,0.0665,63678.0,63668.0,0.18759574]
[1721326960979,0.157056,63672.0,63668.0,0.18759574]
[1721326961470,0.233062,63669.0,63668.0,0.03053174]
[1721326961720,0.297462,63669.0,63668.0,0.03053174]
[1721326962426,0.07717479,63674.0,63668.0,0.03053174]
[1721326962427,0.15705,63674.0,63670.0,0.157059]
[1721326962681,0.0644,63676.0,63671.0,0.01875907]
[1721326962893,0.314103,63674.0,63671.0,0.01875907]
[1721326963147,0.314109,63672.0,63668.0,0.03053174]
[1721326963357,0.15706,63670.0,63668.0,0.04553174]
[1721326964037,0.157058,63671.0,63668.0,0.04553174]
[1721326964268,0.157058,63671.0,63668.0,0.19459574]
[1721326964496,0.157052,63673.0,63669.0,0.157061]
[1721326964945,0.157058,63671.0,63668.0,0.03753174]
[1721326965169,0.157055,63672.0,63668.0,0.03753174]
[1721326965449,0.157055,63672.0,63668.0,0.03053174]
[1721326965676,0.00083,63669.0,63668.0,0.03053174]
[1721326965903,0.00083,63669.0,63668.0,0.50172474]
[1721326966139,0.00083,63669.0,63668.0,0.64602474]
[1721326966368,0.00083,63669.0,63668.0,0.96715374]
[1721326966595,0.00083,63669.0,63668.0,0.18759574]
[1721326966783,0.00083,63669.0,63668.0,0.19459574]
[1721326967057,0.00083,63669.0,63668.0,0.50872474]
[1721326967312,0.00083,63669.0,63668.0,0.51172474]
[1721326967499,0.00083,63669.0,63668.0,0.52272474]
[1721326967746,0.00083,63669.0,63668.0,1.30536448]
[1721326968474,0.00083,63669.0,63668.0,1.29536448]
[1721326968957,0.00083,63669.0,63668.0,1.30536448]
[1721326969190,0.00083,63669.0,63668.0,1.29436448]
[1721326969419,0.00083,63669.0,63668.0,1.28436448]
[1721326969646,0.00083,63669.0,63668.0,1.31236448]
[1721326970814,0.00083,63669.0,63668.0,1.28183274]
[1721326972447,0.00083,63669.0,63668.0,0.96770374]
[1721326973044,0.00083,63669.0,63668.0,0.95370374]
[1721326973322,0.00083,63669.0,63668.0,0.014]
[1721326973538,0.615316,63669.0,63668.0,0.014]
[1721326973710,0.92944,63669.0,63668.0,0.014]
[1721326973927,0.92944,63669.0,63658.0,0.002794]
[1721326973928,0.314146,63665.0,63659.0,0.157086]
[1721326974155,0.458254,63669.0,63659.0,0.157086]
[1721326974156,0.301192,63669.0,63668.0,0.028]
[1721326974430,0.14413,63669.0,63668.0,0.05853174]
[1721326974935,0.00083,63669.0,63668.0,0.34091348]
[1721326975163,0.00083,63669.0,63668.0,1.12623548]
[1721326975819,0.00083,63669.0,63668.0,1.11223548]
[1721326976510,0.00083,63669.0,63668.0,1.42936448]
[1721326976986,0.00083,63669.0,63668.0,1.42636448]
[1721326977211,0.00083,63669.0,63668.0,1.44036448]
[1721326977649,0.00083,63669.0,63668.0,1.44436448]
[1721326978109,0.00083,63669.0,63668.0,1.45836448]
[1721326979528,0.00083,63669.0,63668.0,1.42783274]
[1721326983717,0.00083,63669.0,63668.0,0.97170374]
[1721326985154,0.00083,63669.0,63668.0,1.28583274]
[1721326985865,0.00083,63669.0,63668.0,1.6097718]
[1721326986394,0.00083,63679.0,63678.0,0.47112]
[1721326986623,0.00083,63679.0,63678.0,0.81573174]
[1721326987302,0.00083,63679.0,63678.0,0.97011348]
[1721326987764,0.00083,63679.0,63678.0,0.98111348]
[1721326987992,0.00083,63679.0,63678.0,1.62339348]
[1721326988215,0.04947921,63691.0,63687.0,0.785087]
[1721326988503,0.04947921,63691.0,63687.0,1.56034315]
[1721326988727,0.00834,63695.0,63687.0,1.56034315]
[1721326988948,0.00834,63695.0,63687.0,1.56034235]
[1721326989182,0.00834,63695.0,63687.0,1.5603432]
[1721326989857,0.00834,63695.0,63687.0,1.2463082]
[1721326990124,0.00834,63695.0,63687.0,1.42993548]
[1721326990348,0.00834,63695.0,63687.0,1.44393548]
[1721326990783,0.00834,63695.0,63687.0,1.5743422]
[1721326991013,0.00834,63695.0,63687.0,1.5883422]
[1721326991229,0.00834,63695.0,63687.0,1.63834115]
[1721326991452,0.00834,63695.0,63687.0,1.66134115]
[1721326991677,0.00834,63695.0,63687.0,1.61134115]
[1721326992107,0.00834,63695.0,63687.0,1.61133906]
[1721326992395,0.00834,63695.0,63687.0,1.51327053]
[1721326992615,0.00834,63695.0,63687.0,1.59733988]
[1721326993041,0.00834,63695.0,63687.0,1.58333988]
[1721326993263,0.00834,63695.0,63687.0,1.63333988]
[1721326993498,0.00834,63695.0,63687.0,1.60280814]
[1721326993957,0.00834,63695.0,63687.0,1.93084314]
[1721326994388,0.00834,63695.0,63687.0,1.96360464]
[1721326994602,0.00834,63699.0,63696.0,0.05]
[1721326994814,0.00834,63699.0,63698.0,0.470971]
[1721326995046,0.00834,63699.0,63698.0,1.25331474]
[1721326995490,0.00834,63699.0,63698.0,1.34477468]
[1721326995712,0.00834,63699.0,63698.0,1.68663079]
[1721326995937,0.00834,63699.0,63698.0,1.74575568]
[1721326996203,0.00834,63699.0,63698.0,1.73175568]
[1721326996650,0.00834,63699.0,63698.0,1.92090568]
[1721326996870,0.00834,63699.0,63698.0,2.00690568]
[1721326997123,0.00834,63699.0,63698.0,2.49941323]